bitfinex-derivatives/quotes_ETHF0:USTF0_20220106
["timestamp","ask_amount","ask_price","bid_price","bid_amount"]
[1641494230560,0.97029215,3426.1,3425.8,0.397182]
[1641494230761,0.97029215,3426.4,3426.0,2.00479]
[1641494231161,0.97029215,3426.4,3426.1,0.397182]
[1641494231567,0.97029215,3426.4,3426.2,0.459982]
[1641494231762,0.97029215,3426.4,3426.3,0.397182]
[1641494231962,0.97029215,3426.4,3426.3,1.226582]
[1641494232763,2.00479,3426.8,3426.3,1.226582]
[1641494233164,2.00479,3426.8,3426.4,0.384472]
[1641494233466,2.00479,3426.8,3426.5,0.397182]
[1641494233665,2.00479,3426.8,3426.6,0.459982]
[1641494233864,2.00479,3426.8,3426.7,0.397182]
[1641494240871,2.00479,3427.1,3426.7,0.397182]
[1641494241374,2.00479,3427.1,3426.8,0.459982]
[1641494241574,2.00479,3427.1,3426.9,0.397182]
[1641494241773,2.00479,3427.1,3426.4,2.389262]
[1641494242177,2.00479,3427.1,3426.5,0.397182]
[1641494242372,4.87814845,3427.4,3426.5,0.397182]
[1641494242874,5.21296571,3426.9,3426.5,0.397182]
[1641494246875,5.21296571,3426.9,3426.4,4.00958]
[1641494247077,0.397182,3426.8,3426.4,4.00958]
[1641494247277,3.33712703,3426.5,3426.4,2.00479]
[1641494249279,3.33712703,3426.5,3426.4,2.861954]
[1641494249480,3.33712703,3426.5,3426.4,2.401972]
[1641494250183,3.33712703,3426.5,3426.4,2.861954]
[1641494251688,3.33712703,3426.5,3426.4,2.401972]
[1641494252088,5.11982498,3427.0,3426.4,2.861954]
[1641494252287,5.11982498,3427.0,3426.4,3.395654]
[1641494253889,3.11503498,3427.0,3426.4,3.395654]
[1641494254891,3.11503498,3427.0,3426.8,2.00479]
[1641494255092,2.00479,3427.9,3426.9,1.241636]
[1641494255291,5.34055979,3427.9,3426.9,1.241636]
[1641494256993,5.34055979,3427.9,3427.2,2.00479]
[1641494257192,4.96622961,3427.5,3427.2,2.401972]
[1641494257595,4.96622961,3427.5,3426.8,2.00479]
[1641494257794,4.90204099,3427.0,3426.9,0.397182]
[1641494257994,5.51014099,3427.0,3426.9,0.857164]
[1641494258194,0.6081,3427.0,3426.9,0.857164]
[1641494258494,0.6081,3427.0,3426.2,1.45818508]
[1641494258794,5.537448,3426.8,3426.3,0.397182]
[1641494258997,5.537448,3426.8,3426.4,2.00479]
[1641494259399,5.537448,3426.8,3426.5,0.397182]
[1641494259995,4.537448,3426.8,3426.5,0.397182]
[1641494260295,2.00479,3427.2,3426.5,0.397182]
[1641494260495,0.397182,3427.1,3426.5,0.397182]
[1641494260995,0.397182,3427.1,3426.6,0.384472]
[1641494262396,0.397182,3427.1,3426.5,0.397182]
[1641494262596,0.397182,3427.1,3426.4,2.00479]
[1641494262796,0.397182,3427.1,3426.0,2.00479]
[1641494262797,1.5,3426.7,3426.0,2.00479]
[1641494262998,0.397182,3426.6,3426.0,2.00479]
[1641494263196,1.5,3426.5,3426.0,2.00479]
[1641494263813,0.397182,3426.6,3426.0,2.00479]
[1641494263998,0.397182,3426.6,3426.0,2.389262]
[1641494264197,0.397182,3426.6,3426.0,2.401972]
[1641494265599,2.74164801,3426.3,3426.0,2.401972]
[1641494265898,2.74164801,3426.3,3426.1,0.459982]
[1641494266099,2.74164801,3426.3,3426.0,2.786444]
[1641494266500,0.397182,3426.6,3426.0,2.786444]
[1641494266703,0.397182,3426.6,3426.1,0.459982]
[1641494267100,0.397182,3426.6,3426.2,0.397182]
[1641494267801,2.83226554,3426.8,3426.2,0.397182]
[1641494268701,2.00479,3426.8,3426.2,0.397182]
[1641494269108,0.397182,3426.7,3426.2,0.397182]
[1641494269307,2.00479,3426.8,3426.2,0.397182]
[1641494269510,15.61523448,3427.2,3426.2,0.397182]
[1641494271005,15.61523448,3427.2,3426.6,2.00479]
[1641494271204,16.01241648,3427.2,3426.6,2.59359]
[1641494271805,3.45241648,3427.2,3426.6,2.59359]
[1641494272203,3.45241648,3427.2,3426.7,0.397182]
[1641494274308,16.01241648,3427.2,3426.6,2.59359]
[1641494275308,16.01241648,3427.2,3426.7,0.1020585]
[1641494275309,1.96319165,3427.1,3426.7,0.1020585]
[1641494275609,0.397182,3427.0,3426.7,0.1020585]
[1641494276713,0.46319165,3426.9,3426.7,0.1020585]
[1641494277311,0.397182,3426.8,3426.7,0.1020585]
[1641494278413,3.73380668,3426.7,3426.6,2.00479]
[1641494278615,0.397182,3426.8,3426.6,2.00479]
[1641494279816,12.56,3426.7,3425.8,1.85116215]
[1641494280017,1.5,3426.6,3425.8,1.85116215]
[1641494280218,0.397182,3426.5,3425.8,1.85116215]
[1641494281218,2.00479,3426.2,3425.8,1.85116215]
[1641494281423,0.397182,3426.1,3425.6,1.85116215]
[1641494281620,1.5,3425.8,3425.6,1.85116215]
[1641494281819,2.1003,3425.8,3425.6,1.85116215]
[1641494282018,12.957182,3425.7,3425.6,1.85116215]
[1641494282621,12.957182,3425.7,3425.4,0.44165238]
[1641494282823,12.957182,3425.7,3425.2,0.44691455]
[1641494282824,1.45935549,3425.5,3425.2,0.44691455]
[1641494283020,0.397182,3425.4,3425.2,0.44691455]
[1641494283722,12.957182,3425.4,3425.2,0.44691455]
[1641494284024,1.1988083,3425.3,3424.6,5.09006024]
[1641494284326,0.397182,3425.2,3424.6,2.00479]
[1641494285327,0.397182,3425.2,3424.3,3.08527024]
[1641494285524,1.5,3424.7,3424.3,3.08527024]
[1641494285724,1.4597432,3424.5,3424.3,3.08527024]
[1641494285924,1.5,3424.4,3424.1,0.89025657]
[1641494286127,1.5,3424.4,3424.1,3.97626913]
[1641494286324,0.397182,3424.3,3424.1,3.97626913]
[1641494286526,1.64147075,3424.3,3424.1,3.97626913]
[1641494287127,2.401972,3424.3,3424.1,3.97626913]
[1641494287327,2.401972,3424.3,3424.1,0.89025657]
[1641494287731,2.00479,3424.3,3424.2,0.459982]
[1641494287929,2.00479,3424.3,3424.2,1.113382]
[1641494288127,2.00479,3424.3,3424.2,0.6534]
[1641494289229,1.53991228,3424.3,3424.2,0.6534]
[1641494289430,1.53991228,3424.3,3424.2,1.113382]
[1641494291138,2.00479,3425.0,3424.2,3.118172]
[1641494291340,2.00479,3425.0,3424.3,0.397182]
[1641494292138,2.66237303,3424.9,3424.3,0.397182]
[1641494292339,2.66237303,3424.9,3424.5,1.85159769]
[1641494292538,2.66237303,3424.9,3424.6,0.397182]
[1641494292738,2.66237303,3424.9,3424.7,0.459982]
[1641494293139,2.66237303,3424.9,3424.8,0.397182]
[1641494295339,2.66237303,3424.9,3424.8,0.857164]
[1641494295541,2.66237303,3424.9,3424.6,1.85159769]
[1641494295743,0.81049891,3424.5,3424.4,0.397182]
[1641494295939,2.00479,3425.0,3424.4,0.397182]
[1641494296139,0.397182,3424.9,3424.3,2.46889632]
[1641494296941,0.397182,3424.9,3424.2,2.00479]
[1641494298945,0.397182,3424.9,3424.3,0.397182]
[1641494299145,0.397182,3424.9,3424.3,0.47441206]
[1641494299346,0.397182,3424.9,3424.3,1.02701206]
[1641494300147,0.397182,3424.9,3424.4,0.07723006]
[1641494300751,2.00479,3425.0,3424.5,0.781654]
[1641494301050,12.56,3425.7,3424.5,0.781654]
[1641494301252,1.95469048,3425.1,3425.0,2.00479]
[1641494301451,1.95469048,3425.1,3425.0,2.861954]
[1641494301651,1.95469048,3425.1,3425.0,2.401972]
[1641494302552,1.95469048,3425.1,3425.0,2.861954]
[1641494302955,1.95469048,3425.1,3425.0,2.401972]
[1641494303157,1.95469048,3425.1,3425.0,0.07723006]
[1641494303756,1.74650794,3424.5,3424.2,2.00479]
[1641494303957,2.47700794,3424.5,3424.2,2.00479]
[1641494304257,0.7305,3424.5,3424.3,0.459982]
[1641494305259,0.7305,3424.5,3424.2,2.00479]
[1641494305459,0.7305,3424.5,3424.3,0.459982]
[1641494306160,0.7305,3424.5,3424.2,2.00479]
[1641494306161,0.65745001,3424.5,3424.2,2.00479]
[1641494306362,0.65745001,3424.5,3424.3,0.459982]
[1641494306862,0.65745001,3424.5,3424.4,0.397182]
[1641494307061,2.18543298,3425.1,3424.4,0.397182]
[1641494307262,2.58261498,3425.1,3424.4,0.397182]
[1641494309064,2.58261498,3425.1,3424.2,2.00479]
[1641494309277,1.82633604,3424.5,3424.2,2.00479]
[1641494309468,0.397182,3424.4,3424.2,2.00479]
[1641494309665,0.397182,3424.4,3423.8,1.84461912]
[1641494309865,1.15684218,3423.9,3423.8,1.84461912]
[1641494310065,1.55402418,3423.9,3423.8,1.84461912]
[1641494310669,0.397182,3423.9,3423.4,1.84461912]
[1641494311666,12.957182,3423.9,3423.4,1.84461912]
[1641494311866,12.957182,3423.9,3423.2,2.00479]
[1641494312067,0.397182,3423.9,3423.2,2.00479]
[1641494312670,12.957182,3423.9,3423.2,2.00479]
[1641494313970,0.397182,3423.9,3423.2,2.00479]
[1641494315172,0.397182,3423.9,3423.3,0.781654]
[1641494315373,0.397182,3423.9,3423.3,1.470254]
[1641494316774,3.26396277,3424.0,3423.3,1.470254]
[1641494317374,1.25917277,3424.0,3423.3,1.470254]
[1641494317576,2.00479,3424.4,3423.3,1.470254]
[1641494317577,2.00479,3424.4,3423.8,2.00479]
[1641494317777,2.401972,3424.4,3423.8,2.00479]
[1641494317977,2.401972,3424.4,3423.8,2.401972]
[1641494318379,2.00479,3424.4,3423.8,2.401972]
[1641494318879,63.28409,3424.9,3423.8,3.901972]
[1641494319078,32.43089,3424.9,3423.8,3.901972]
[1641494319679,2.00479,3424.9,3423.8,3.901972]
[1641494320181,2.00479,3424.9,3424.1,1.5]
[1641494320379,2.00479,3424.9,3424.3,1.5]
[1641494320980,2.00479,3424.9,3424.5,1.5]
[1641494321182,2.00479,3424.9,3424.7,1.5]
[1641494321383,2.00479,3424.9,3424.8,0.857164]
[1641494321582,2.00479,3424.9,3424.8,1.536764]
[1641494321781,32.64389,3425.6,3424.8,1.536764]
[1641494321981,2.00479,3425.6,3424.8,1.536764]
[1641494322381,2.00479,3425.6,3424.9,0.384472]
[1641494322784,2.00479,3425.6,3425.0,0.397182]
[1641494324187,1.45908932,3426.0,3425.0,0.397182]
[1641494324386,7.00508132,3426.1,3425.0,0.397182]
[1641494324792,7.00508132,3426.1,3425.2,1.5]
[1641494325395,0.97029215,3426.0,3425.2,1.5]
[1641494325594,2.97508215,3426.0,3425.3,0.397182]
[1641494326695,2.97508215,3426.0,3425.5,1.84461912]
[1641494326994,2.00479,3426.0,3425.6,0.781654]
[1641494327392,1.00479,3426.0,3425.6,0.781654]
[1641494328093,1.00479,3426.0,3425.7,0.07721421]
[1641494328293,1.00479,3426.0,3425.8,0.857164]
[1641494329996,1.00479,3426.0,3425.9,0.07721421]
[1641494331600,3.76196743,3426.3,3425.9,0.07721421]
[1641494331798,3.76196743,3426.3,3426.0,0.397182]
[1641494332000,3.76196743,3426.3,3426.1,0.459982]
[1641494332197,3.76196743,3426.3,3426.2,0.397182]
[1641494332398,3.76196743,3426.3,3426.2,1.012382]
[1641494332999,3.76196743,3426.3,3426.2,1.08959621]
[1641494333201,3.76196743,3426.3,3426.2,1.54957821]
[1641494335204,3.76196743,3426.3,3426.2,1.08959621]
[1641494337407,2.76196743,3426.3,3426.2,1.54957821]
[1641494337607,2.00479,3426.4,3426.2,1.54957821]
[1641494338409,2.00479,3426.4,3426.2,1.08959621]
[1641494339210,2.00479,3426.4,3426.2,0.69241421]
[1641494339414,2.00479,3426.4,3426.3,0.53719621]
[1641494339612,2.00479,3426.4,3426.3,0.46168621]
[1641494340013,2.00479,3426.4,3426.3,0.85886821]
[1641494340413,2.00479,3426.4,3426.3,1.31885021]
[1641494340713,2.00479,3426.4,3426.3,0.85886821]
[1641494341317,2.00479,3426.4,3426.3,1.31885021]
[1641494341713,2.00479,3426.4,3426.3,0.85886821]
[1641494342414,1.00479,3426.4,3426.3,1.31885021]
[1641494343015,1.6793486,3426.5,3426.3,1.31885021]
[1641494343814,1.5,3426.4,3426.3,0.07721421]
[1641494344018,1.72762061,3426.0,3425.9,1.84461912]
[1641494344218,14.92242061,3426.0,3425.7,2.4599609]
[1641494344416,16.55109687,3426.0,3425.4,3.08599614]
[1641494344820,1.5,3425.8,3425.4,3.08599614]
[1641494345016,1.45929799,3425.6,3425.4,3.08599614]
[1641494345617,15.68699234,3425.5,3425.3,0.32874386]
[1641494345819,1.39158896,3425.4,3425.1,5.39858727]
[1641494346018,0.397182,3425.3,3425.1,2.00479]
[1641494346219,1.158482,3425.3,3425.1,2.00479]
[1641494347325,0.7613,3425.3,3425.1,2.00479]
[1641494347526,0.158482,3425.3,3425.1,2.00479]
[1641494348324,1.39158896,3425.4,3425.1,2.00479]
[1641494351526,2.72981034,3425.5,3425.2,0.459982]
[1641494353731,2.72981034,3425.5,3425.1,2.00479]
[1641494354831,2.00479,3425.9,3425.1,2.00479]
[1641494356434,14.56479,3425.9,3425.1,2.00479]
[1641494357436,2.00479,3425.9,3425.1,2.00479]
[1641494361339,14.56479,3425.9,3425.1,2.00479]
[1641494362541,1.0509087,3425.7,3425.1,2.00479]
[1641494374955,4.91585305,3425.3,3425.1,2.00479]
[1641494376753,4.91585305,3425.3,3425.2,0.459982]
[1641494376955,4.91585305,3425.3,3425.2,1.226582]
[1641494377156,4.91585305,3425.3,3425.2,0.7666]
[1641494378059,4.91585305,3425.3,3425.2,1.163782]
[1641494378257,2.00479,3425.9,3425.2,1.163782]
[1641494378857,0.97029215,3426.6,3425.4,28.29049533]
[1641494378858,39.58793968,3426.5,3425.4,28.29049533]
[1641494379057,39.58793968,3426.5,3425.6,1.5]
[1641494379257,6.87503968,3426.5,3425.6,1.5]
[1641494380059,6.87503968,3426.5,3426.4,2.00479]
[1641494380260,6.87503968,3426.5,3426.4,2.64889]
[1641494380861,6.87503968,3426.5,3426.4,3.046072]
[1641494381663,6.87503968,3426.5,3426.4,2.64889]
[1641494382667,6.87503968,3426.5,3426.4,3.108872]
[1641494383063,6.87503968,3426.5,3426.4,2.64889]
[1641494386473,19.43503968,3426.5,3426.0,2.00479]
[1641494388673,1.42018015,3426.4,3426.0,2.00479]
[1641494388872,1.88339305,3426.4,3426.0,2.00479]
[1641494389673,12.56,3426.3,3426.0,2.00479]
[1641494390376,2.87911195,3426.4,3426.1,0.459982]
[1641494390574,7.84533183,3426.5,3426.1,1.192082]
[1641494391276,6.87503968,3426.5,3426.1,1.192082]
[1641494392075,6.87503968,3426.5,3426.1,1.589264]
[1641494392978,6.87503968,3426.5,3426.1,1.192082]
[1641494393180,6.87503968,3426.5,3426.1,0.7321]
[1641494393582,1.4589467,3426.4,3426.1,0.7321]
[1641494394380,1.4589467,3426.4,3426.2,0.459982]
[1641494394581,1.4589467,3426.4,3426.1,0.7321]
[1641494395183,1.4589467,3426.4,3426.2,0.459982]
[1641494395584,1.4589467,3426.4,3426.1,0.7321]
[1641494395782,1.4589467,3426.4,3426.0,2.00479]
[1641494399988,6.87503968,3426.5,3426.0,2.389262]
[1641494401088,6.87503968,3426.5,3426.0,2.00479]
[1641494402990,6.87503968,3426.5,3426.0,3.901972]
[1641494403192,0.97029215,3426.9,3426.2,1.5]
[1641494403392,0.97029215,3426.9,3426.3,0.397182]
[1641494404194,0.97029215,3427.1,3426.3,0.397182]
[1641494404595,0.97029215,3427.1,3427.0,2.00479]
[1641494404797,0.97029215,3427.1,3427.0,3.590954]
[1641494405896,2.6714097,3427.3,3427.0,3.590954]
[1641494405897,1.45854452,3427.3,3427.0,3.590954]
[1641494407303,1.45854452,3427.3,3427.0,3.130972]
[1641494407603,1.45854452,3427.3,3427.1,0.459982]
[1641494408505,1.45854452,3427.3,3427.2,0.397182]
[1641494410008,7.08439952,3427.5,3427.2,0.397182]
[1641494410209,7.08439952,3427.5,3427.0,2.00479]
[1641494410410,7.08439952,3427.5,3427.3,1.0]
[1641494413409,7.08439952,3427.5,3427.3,1.5855]
[1641494415214,19.64439952,3427.5,3427.3,1.5855]
[1641494415413,2.89105263,3427.0,3426.8,0.384472]
[1641494415613,19.64439952,3427.5,3426.9,0.459982]
[1641494415815,7.08439952,3427.5,3426.9,0.459982]
[1641494416024,7.08439952,3427.5,3426.8,0.384472]
[1641494416214,7.08439952,3427.5,3426.8,0.781654]
[1641494416816,9.08918952,3427.5,3426.8,0.781654]
[1641494419320,21.64918952,3427.5,3426.8,0.397182]
[1641494419516,21.64918952,3427.5,3426.3,2.00479]
[1641494419916,1.5,3427.3,3426.3,2.00479]
[1641494420117,1.5,3427.1,3426.2,0.2901038]
[1641494420517,1.5,3427.1,3425.8,1.84540396]
[1641494420518,21.64918952,3427.5,3425.8,1.84540396]
[1641494420717,0.5,3426.9,3425.9,1.0]
[1641494421017,5.69953463,3426.4,3425.9,1.0]
[1641494421218,5.69953463,3426.4,3426.3,1.0]
[1641494421427,5.69953463,3426.4,3426.3,0.459982]
[1641494422019,5.69953463,3426.4,3426.3,1.0]
[1641494422419,5.69953463,3426.4,3426.3,0.459982]
[1641494422619,5.69953463,3426.4,3426.1,1.0]
[1641494422819,5.69953463,3426.4,3426.0,0.384472]
[1641494423019,5.69953463,3426.4,3426.3,1.0]
[1641494423219,5.69953463,3426.4,3426.3,1.459982]
[1641494423622,5.69953463,3426.4,3426.3,1.0]
[1641494424222,5.69953463,3426.4,3425.8,3.00479]
[1641494424423,5.69953463,3426.4,3426.3,1.0]
[1641494424721,5.69953463,3426.4,3426.3,1.459982]
[1641494424921,5.69953463,3426.4,3426.3,1.0]
[1641494425424,4.69953463,3426.4,3426.3,1.0]
[1641494425821,2.00479,3426.5,3426.3,1.0]
[1641494428023,2.00479,3426.5,3426.3,1.459982]
[1641494428223,2.00479,3426.5,3426.3,1.0]
[1641494429125,2.00479,3426.5,3426.4,0.459982]
[1641494429427,2.00479,3426.5,3426.3,1.0]
[1641494429625,2.63389,3426.5,3426.3,1.0]
[1641494429930,15.69389,3426.5,3425.8,2.00479]
[1641494430126,0.5,3426.3,3425.7,0.28912901]
[1641494430829,14.56479,3425.8,3425.7,0.28912901]
[1641494431024,15.38949,3425.8,3425.7,0.28912901]
[1641494432028,16.50593659,3425.8,3425.7,0.28912901]
[1641494432625,16.50593659,3425.8,3424.8,0.28912901]
[1641494432826,2.00479,3425.1,3424.8,0.28912901]
[1641494433126,2.58769,3425.1,3424.8,0.28912901]
[1641494433526,2.58769,3425.1,3424.3,3.97319396]
[1641494433826,15.14769,3425.1,3424.3,0.123]
[1641494434026,1.32140728,3425.0,3424.1,1.84540396]
[1641494434225,12.56,3424.9,3424.1,1.84540396]
[1641494434425,1.4597155,3424.7,3424.1,1.84540396]
[1641494434825,2.00479,3424.4,3424.1,1.84540396]
[1641494435026,12.56,3424.3,3424.1,1.84540396]
[1641494435325,12.56,3424.3,3424.0,0.41241173]
[1641494435726,12.56,3424.3,3424.0,0.28941173]
[1641494437130,12.56,3424.3,3423.9,3.85019396]
[1641494437131,12.56,3424.3,3423.9,2.00479]
[1641494437328,2.58739,3424.4,3423.9,2.00479]
[1641494437728,2.58739,3424.4,3424.3,0.123]
[1641494437928,2.00479,3424.4,3424.3,0.123]
[1641494440634,2.00479,3424.4,3424.3,0.582982]
[1641494440831,2.00479,3424.4,3424.3,0.123]
[1641494441630,2.00479,3424.4,3424.3,0.582982]
[1641494442033,13.95934049,3425.0,3424.3,0.582982]
[1641494442634,13.95934049,3425.0,3424.4,0.123]
[1641494443437,13.95934049,3425.0,3424.5,0.123]
[1641494444134,13.95934049,3425.0,3423.9,4.00958]
[1641494444335,14.62194049,3425.0,3424.3,0.123]
[1641494445536,14.62194049,3425.0,3423.9,4.00958]
[1641494446036,14.62194049,3425.0,3424.3,0.123]
[1641494446236,14.62194049,3425.0,3423.9,4.00958]
[1641494446435,1.377,3424.9,3423.9,2.00479]
[1641494447135,12.56,3424.3,3423.9,2.00479]
[1641494447338,12.56,3424.3,3423.4,31.3642]
[1641494447536,12.56,3424.3,3424.2,0.123]
[1641494447736,12.56,3424.3,3423.3,33.05159]
[1641494447936,12.56,3424.3,3423.3,2.12779]
[1641494448136,1.45993927,3424.2,3423.3,2.00479]
[1641494448738,1.45993927,3424.2,3422.9,0.123]
[1641494448937,2.00479,3423.4,3422.9,0.123]
[1641494450640,1.26869416,3423.8,3423.3,0.123]
[1641494450841,1.26869416,3423.8,3423.5,0.123]
[1641494451040,3.27348416,3423.8,3423.5,0.123]
[1641494451443,2.00479,3423.8,3423.7,0.123]
[1641494452448,2.00479,3423.8,3423.7,0.582982]
[1641494452644,2.00479,3423.8,3423.7,0.520182]
[1641494453244,2.00479,3423.8,3423.7,0.980164]
[1641494454044,2.00479,3423.8,3423.7,1.522164]
[1641494454445,1.05135326,3424.2,3423.7,1.522164]
[1641494454644,2.00479,3424.4,3424.1,0.123]
[1641494454843,2.00479,3424.4,3424.3,0.123]
[1641494455844,2.00479,3425.0,3424.3,0.123]
[1641494456045,2.00479,3425.0,3424.9,0.123]
[1641494456245,2.00479,3425.0,3424.9,1.137982]
[1641494456644,2.00479,3425.0,3424.9,1.412164]
[1641494456844,2.00479,3425.0,3424.9,0.952182]
[1641494457046,2.00479,3425.4,3424.9,1.075182]
[1641494457245,2.00479,3425.4,3425.3,0.123]
[1641494457447,14.56479,3425.4,3424.9,0.952182]
[1641494457846,2.00479,3425.4,3425.3,0.123]
[1641494458447,2.00479,3425.4,3425.2,0.397182]
[1641494459045,14.56479,3425.4,3425.3,0.123]
[1641494459245,14.56479,3425.4,3425.2,0.397182]
[1641494459445,14.56479,3425.4,3424.9,0.555]
[1641494459647,14.56479,3425.4,3425.0,0.0488]
[1641494460251,14.56479,3425.4,3425.1,0.397182]
[1641494460447,2.00479,3425.4,3425.1,1.244382]
[1641494460647,2.00479,3425.4,3425.3,0.123]
[1641494461048,2.00479,3425.4,3425.3,0.520182]
[1641494461250,1.26108638,3425.7,3425.3,1.364636]
[1641494462350,1.26108638,3425.7,3425.6,0.123]
[1641494462549,1.26108638,3425.7,3425.6,0.397182]
[1641494462752,1.26108638,3425.7,3425.6,0.857164]
[1641494462950,1.26108638,3425.7,3425.6,0.397182]
[1641494464150,1.26108638,3425.7,3425.6,0.857164]
[1641494465551,1.26108638,3425.7,3425.6,1.410564]
[1641494466252,2.00479,3426.0,3425.6,1.533564]
[1641494466450,2.00479,3426.0,3425.6,1.410564]
[1641494469655,2.00479,3426.0,3425.7,0.123]
[1641494469858,2.00479,3426.0,3425.6,0.459982]
[1641494470054,1.95599,3426.0,3425.8,0.397182]
[1641494473355,1.95599,3426.0,3425.9,0.459982]
[1641494473556,1.95599,3426.0,3425.8,0.397182]
[1641494473757,12.56,3426.5,3425.9,0.123]
[1641494473958,12.56,3426.5,3425.8,0.397182]
[1641494474358,12.56,3426.5,3426.0,0.123]
[1641494474759,12.56,3426.5,3425.8,0.397182]
[1641494475161,12.56,3426.5,3426.0,0.123]
[1641494475360,2.00479,3426.2,3426.0,0.123]
[1641494475563,14.56479,3426.2,3426.0,0.123]
[1641494476162,14.56479,3426.2,3425.8,0.397182]
[1641494476360,14.56479,3426.2,3426.1,0.123]
[1641494477860,14.56479,3426.2,3426.1,0.520182]
[1641494479468,14.56479,3426.2,3426.1,0.123]
[1641494480767,2.00479,3426.2,3426.1,0.123]
[1641494484573,14.56479,3426.2,3426.1,0.123]
[1641494484873,2.00479,3426.2,3426.1,0.123]
[1641494485275,14.56479,3426.2,3425.9,0.397182]
[1641494485774,14.56479,3426.2,3425.5,0.123]
[1641494485978,14.56479,3426.2,3425.5,0.520182]
[1641494486475,14.56479,3426.2,3425.6,0.384472]
[1641494487278,14.56479,3426.2,3425.7,0.123]
[1641494487881,2.00479,3426.2,3425.9,0.123]
[1641494488179,2.00479,3426.2,3426.0,0.459982]
[1641494488379,2.00479,3426.2,3425.6,0.507472]
[1641494488682,2.00479,3426.2,3426.1,0.123]
[1641494489581,2.00479,3426.5,3426.2,1.0]
[1641494489779,2.00479,3426.5,3426.3,0.384472]
[1641494489980,2.00479,3426.5,3426.4,0.520182]
[1641494490383,2.00479,3426.5,3426.4,0.980164]
[1641494490980,32.92067709,3427.2,3426.4,2.480164]
[1641494490981,0.97029215,3427.2,3426.4,2.480164]
[1641494491187,0.97029215,3427.2,3427.1,0.123]
[1641494491382,0.97029215,3427.2,3427.1,1.620464]
[1641494491583,0.93788523,3427.4,3427.1,1.620464]
[1641494491782,0.93788523,3427.4,3427.3,0.123]
[1641494492182,0.93788523,3427.4,3427.3,0.980164]
[1641494494684,14.56479,3428.0,3427.4,0.06211477]
[1641494494884,14.56479,3428.0,3427.4,0.45929677]
[1641494495086,16.02311118,3428.0,3427.4,0.06211477]
[1641494495286,16.02311118,3428.0,3427.4,0.18511477]
[1641494495685,16.02311118,3428.0,3427.4,0.06211477]
[1641494495885,0.78150002,3427.9,3427.4,0.06211477]
[1641494496085,1.60040002,3427.9,3427.4,0.06211477]
[1641494496285,1.377,3427.8,3427.4,0.06211477]
[1641494496488,1.60040002,3427.9,3427.4,0.06211477]
[1641494497689,1.60040002,3427.9,3427.4,0.18511477]
[1641494497890,12.56,3427.5,3427.4,0.18511477]
[1641494498891,12.56,3427.5,3427.4,0.06211477]
[1641494499691,11.56,3427.5,3427.4,0.06211477]
[1641494499892,11.56,3427.5,3427.4,0.123]
[1641494500092,10.49788523,3427.5,3427.4,0.123]
[1641494500293,2.00479,3427.6,3427.4,0.123]
[1641494500591,2.00479,3427.6,3427.4,0.582982]
[1641494500891,2.00479,3427.6,3427.4,0.123]
[1641494501496,2.00479,3427.6,3427.1,0.384472]
[1641494503294,2.00479,3427.6,3427.1,0.507472]
[1641494503496,2.00479,3427.6,3427.1,0.384472]
[1641494503696,2.00479,3427.6,3427.5,0.123]
[1641494504095,2.00479,3427.6,3427.5,0.582982]
[1641494504300,2.00479,3427.6,3427.5,0.123]
[1641494504498,2.00479,3427.6,3427.5,0.520182]
[1641494504695,1.00479,3427.6,3427.5,0.520182]
[1641494505697,1.00479,3427.6,3427.1,0.384472]
[1641494505898,1.00479,3427.6,3427.2,0.123]
[1641494506399,1.00479,3427.6,3427.1,0.384472]
[1641494506598,1.00479,3427.6,3427.2,0.397182]
[1641494506801,1.00479,3427.6,3427.5,0.123]
[1641494507600,1.00479,3427.6,3427.3,0.123]
[1641494508000,1.00479,3427.6,3427.1,0.384472]
[1641494508400,1.00479,3427.6,3427.5,0.123]
[1641494509002,1.00479,3427.6,3427.1,0.507472]
[1641494509204,1.00479,3427.6,3427.5,0.123]
[1641494509406,1.00479,3427.6,3427.5,0.9938]
[1641494509604,0.05359,3427.6,3427.5,1.390982]
[1641494510405,2.00479,3428.0,3427.5,1.850964]
[1641494510605,2.00479,3428.0,3427.9,0.123]
[1641494512805,2.00479,3428.0,3427.9,0.582982]
[1641494513003,2.00479,3428.0,3427.9,0.123]
[1641494513805,2.00479,3428.0,3427.9,0.582982]
[1641494514004,2.00479,3428.0,3427.9,0.123]
[1641494518011,2.62939,3428.0,3427.9,0.123]
[1641494518411,15.18939,3428.0,3427.9,0.123]
[1641494518612,2.62939,3428.0,3427.9,0.123]
[1641494518910,15.18939,3428.0,3427.3,2.00479]
[1641494519111,15.18939,3428.0,3426.8,2.00479]
[1641494519112,1.377,3427.4,3426.8,2.00479]
[1641494519311,13.937,3427.4,3426.8,2.00479]
[1641494519513,1.45875728,3427.0,3426.8,2.00479]
[1641494519717,2.11355728,3427.0,3426.8,2.00479]
[1641494520514,2.11355728,3427.0,3426.9,0.459982]
[1641494520715,2.00479,3427.4,3426.9,0.459982]
[1641494520915,1.45853814,3427.5,3427.3,0.123]
[1641494522117,1.45853814,3427.5,3427.4,0.123]
[1641494522716,1.45853814,3427.5,3427.4,0.582982]
[1641494523318,3.4530519,3428.0,3427.4,0.967454]
[1641494523520,2.00479,3428.0,3427.9,0.123]
[1641494523718,2.00479,3428.0,3427.9,0.7552]
[1641494525521,2.00479,3428.0,3427.9,0.6322]
[1641494525721,2.00479,3428.0,3427.9,0.7552]
[1641494526021,2.00479,3428.0,3427.9,1.215182]
[1641494526820,2.00479,3428.0,3427.9,1.092182]
[1641494527021,2.00479,3428.0,3427.9,1.215182]
[1641494528125,2.00479,3428.0,3427.9,0.7552]
[1641494528324,2.00479,3428.0,3427.9,0.6322]
[1641494528724,2.00479,3428.0,3427.9,0.7552]